[Event "GER-ch Youth U12M 2018"]
[Site "Willingen"]
[Date "2018.05.20"]
[Round "1"]
[White "Halabi, Ibrahim"]
[Black "Eilenberg, Jonas"]
[Result "0-1"]
[ECO "C02"]
[WhiteElo "1701"]
[BlackElo "1852"]
[Annotator "NA"]
[PlyCount "62"]
[EventDate "2018.05.19"]
[EventType "swiss"]
[EventCountry "GER"]
[SourceTitle "playchess.com"]
[Source "ChessBase"]
[SourceQuality "1"]
[TimeControl "40/4500+30:900+30"]

1. e4 {[%emt 0:00:00]} e6 {[%emt 0:00:11]} 2. d4 {[%emt 0:00:00]} d5 {[%emt 0:00:12]} 3. e5 {[%emt 0:00:00]} c5 {[%emt 0:00:13]} 4. c3 {[%emt 0:00:03]} Nc6 {[%emt 0:00:07]} 5. Nf3 {[%emt 0:00:07]} Qb6 {[%emt 0:00:20]} 6. Be2 {[%emt 0:00:19]} f6 {[%emt 0:01:52]} 7. O-O {[%emt 0:05:21]} fxe5 {[%emt 0:01:00]} 8. dxe5 {[%emt 0:00:21]} Nge7 {[%emt 0:02:05]} 9. Bd3 {[%emt 0:06:52]} g6 {[%emt 0:01:31]} 10. Re1 {[%emt 0:05:28]} Bg7 {[%emt 0:00:27]} 11. Nbd2 {[%emt 0:12:42]} O-O {[%emt 0:00:21]} 12. Nf1 {[%emt 0:05:53]} (12. Qe2 $11 {bleibt in der Remisbreite.}) 12... c4 {[%emt 0:01:17]} 13. Bc2 {[%emt 0:08:18]} Nxe5 {[%emt 0:01:14]} 14. Nd4 {[%emt 0:11:42]} N5c6 {[%emt 0:01:57]} 15. Nf3 $17 {[%emt 0:05:07]} Bd7 {[%emt 0:07:02]} 16. Rb1 {[%emt 0:00:31]} Qc7 {[%emt 0:01:30]} 17. Ng3 {[%emt 0:00:48]} Kh8 {[%emt 0:02:34]} 18. h4 {[%emt 0:02:17]} e5 {[%emt 0:01:29]} 19. h5 {[%emt 0:01:34]} Bg4 {[%emt 0:04:17]} 20. Qd2 {[%emt 0:04:15]} Bxf3 {[%emt 0:03:21]} 21. gxf3 {[%emt 0:00:00]} d4 {[%emt 0:02:34]} 22. h6 {[%emt 0:01:41]} Bf6 {[%emt 0:00:37]} 23. Ne4 {[%emt 0:00:52]} d3 {[%emt 0:01:13]} 24. Bd1 {[%emt 0:00:05]} Nd5 {[%emt 0:00:54]} 25. b3 {[%emt 0:02:17]} b5 {[%emt 0:00:47]} 26. Ba3 {[%emt 0:00:46]} Nf4 {[%emt 0:01:26]} 27. Bxf8 {[%emt 0:02:58]} Rxf8 {[%emt 0:00:05]} 28. a4 {[%emt 0:02:46]} Qd7 {[%emt 0:01:21]} 29. Nxf6 {[%emt 0:04:14]} Rxf6 {[%emt 0:01:02]} 30. Re4 {[%emt 0:01:13]} Qh3 {[%emt 0:00:47]} 31. Rxf4 {[%emt 0:01:18]} Rxf4 0-1

[Event "GER-ch Youth U12M 2018"]
[Site "Willingen"]
[Date "2018.05.20"]
[Round "1"]
[White "Schulemann, Gero"]
[Black "Tham, Nam"]
[Result "0-1"]
[ECO "C42"]
[WhiteElo "1700"]
[BlackElo "1866"]
[Annotator "NA"]
[PlyCount "84"]
[EventDate "2018.05.19"]
[EventType "swiss"]
[EventCountry "GER"]
[SourceTitle "playchess.com"]
[Source "ChessBase"]
[SourceQuality "1"]
[TimeControl "40/4500+30:900+30"]

1. e4 {[%emt 0:00:00]} e5 {[%emt 0:00:10]} 2. Bc4 {[%emt 0:00:00]} Nf6 {[%emt 0:00:22]} 3. Nf3 {[%emt 0:00:09]} d5 {[%emt 0:11:50]} 4. exd5 {[%emt 0:02:30]} e4 {[%emt 0:05:17]} 5. Nd4 {[%emt 0:09:04]} Bc5 {[%emt 0:00:54]} 6. Nb3 {[%emt 0:01:03]} Bb6 {[%emt 0:00:24]} 7. Nc3 {[%emt 0:01:31]} O-O {[%emt 0:00:27]} 8. O-O {[%emt 0:02:06]} Re8 {[%emt 0:01:23]} 9. h3 {[%emt 0:04:26]} Nbd7 {[%emt 0:02:41]} 10. d3 {[%emt 0:06:01]} exd3 {[%emt 0:06:23]} 11. Bxd3 {[%emt 0:01:15]} Ne5 {[%emt 0:00:33]} 12. Bg5 {[%emt 0:01:25]} Nxd3 {[%emt 0:05:08]} 13. Qxd3 {[%emt 0:00:16]} Re5 {[%emt 0:00:33]} 14. Bxf6 $14 {[%emt 0:07:12]} ({Günstiger ist} 14. Bf4 $16 Rf5 15. Be3) 14... Qxf6 {[%emt 0:00:08]} 15. Rad1 {[%emt 0:07:14]} Bf5 {[%emt 0:00:37]} 16. Qd2 {[%emt 0:00:49]} Qg6 {[%emt 0:01:14]} 17. Kh2 {[%emt 0:02:14]} Bxc2 {[%emt 0:05:25]} 18. Rde1 {[%emt 0:01:00]} Rg5 {[%emt 0:02:21]} 19. f4 {[%emt 0:01:47]} Rh5 {[%emt 0:08:08]} 20. Qe2 {[%emt 0:03:06]} Rf8 {[%emt 0:02:51]} 21. Rf3 {[%emt 0:03:54]} Bf5 {[%emt 0:04:15]} 22. Rg3 {[%emt 0:03:45]} Qh6 {[%emt 0:00:13]} 23. Ne4 {[%emt 0:00:14]} Bxe4 {[%emt 0:00:35]} 24. Qxe4 {[%emt 0:00:10]} Bf2 {[%emt 0:00:05]} 25. Rge3 {[%emt 0:01:05]} Rh4 {[%emt 0:03:45]} 26. Qe7 {[%emt 0:02:13]} Bxe1 {[%emt 0:01:14]} 27. Rxe1 {[%emt 0:00:25]} Qxf4+ {[%emt 0:00:16]} 28. Kg1 {[%emt 0:00:17]} b6 {[%emt 0:01:47]} 29. Re3 {[%emt 0:01:30]} Rh6 {[%emt 0:00:56]} 30. Re4 {[%emt 0:00:42]} Qd6 {[%emt 0:00:23]} 31. Qg5 {[%emt 0:02:43]} Rg6 {[%emt 0:00:10]} 32. Qf5 {[%emt 0:00:23]} Qg3 {[%emt 0:01:18]} 33. Re2 {[%emt 0:00:15]} Rg5 {[%emt 0:00:58]} 34. Qd7 {[%emt 0:00:36]} h6 {[%emt 0:02:45]} 35. Kf1 {[%emt 0:00:16]} Qh2 {[%emt 0:02:10]} 36. Re8 {[%emt 0:01:30]} Qxg2+ {[%emt 0:01:26]} 37. Ke1 {[%emt 0:00:11]} Re5+ {[%emt 0:01:15]} 38. Rxe5 {[%emt 0:00:11]} Qg3+ {[%emt 0:00:03]} 39. Kd2 {[%emt 0:00:09]} Qxe5 {[%emt 0:00:05]} 40. Qc6 {[%emt 0:00:33]} Qxb2+ {[%emt 0:15:14]} 41. Kd1 {[%emt 0:15:17]} Qxa2 {[%emt 0:00:18]} 42. Nd4 {[%emt 0:00:09]} Qa1+ {[%emt 0:00:03]} 0-1

[Event "GER-ch Youth U12M 2018"]
[Site "Willingen"]
[Date "2018.05.20"]
[Round "1"]
[White "Morczynski, Joachim"]
[Black "Schubert, Nikita"]
[Result "0-1"]
[ECO "C54"]
[WhiteElo "1665"]
[BlackElo "1802"]
[Annotator "NA"]
[PlyCount "82"]
[EventDate "2018.05.19"]
[EventType "swiss"]
[EventCountry "GER"]
[SourceTitle "playchess.com"]
[Source "ChessBase"]
[SourceQuality "1"]
[TimeControl "40/4500+30:900+30"]

1. e4 {[%emt 0:00:00]} e5 {[%emt 0:00:05]} 2. Nf3 {[%emt 0:00:00]} Nc6 {[%emt 0:00:05]} 3. Bc4 {[%emt 0:00:00]} Bc5 {[%emt 0:00:05]} 4. c3 {[%emt 0:00:01]} Nf6 {[%emt 0:00:05]} 5. d4 {[%emt 0:00:12]} exd4 {[%emt 0:00:18]} 6. e5 {[%emt 0:00:06]} d5 {[%emt 0:00:21]} 7. Be2 {[%emt 0:00:09]} Ne4 {[%emt 0:03:45]} 8. cxd4 {[%emt 0:00:13]} Bb6 {[%emt 0:00:21]} 9. O-O {[%emt 0:00:09]} O-O {[%emt 0:01:10]} 10. Nc3 {[%emt 0:00:25]} f6 {[%emt 0:15:04]} 11. exf6 {[%emt 0:01:01]} Nxf6 {[%emt 0:01:10]} 12. Be3 {[%emt 0:10:04]} Ne7 {[%emt 0:03:33]} 13. Nh4 {[%emt 0:14:12]} Nf5 {[%emt 0:08:29]} 14. Nxf5 {[%emt 0:01:21]} Bxf5 {[%emt 0:00:01]} 15. Rc1 {[%emt 0:01:58]} c6 {[%emt 0:03:13]} 16. Bd3 {[%emt 0:06:29]} Bxd3 {[%emt 0:05:36]} 17. Qxd3 {[%emt 0:00:19]} Bc7 {[%emt 0:02:35]} 18. Ne2 {[%emt 0:03:18]} Ng4 {[%emt 0:04:24]} 19. g3 {[%emt 0:05:31]} Nxe3 {[%emt 0:10:01]} 20. fxe3 {[%emt 0:02:52]} Qe7 {[%emt 0:01:56]} 21. Nf4 {[%emt 0:08:36]} Bxf4 {[%emt 0:01:27]} 22. exf4 {[%emt 0:00:28]} Rae8 {[%emt 0:00:39]} 23. Qc3 {[%emt 0:01:54]} Qe3+ {[%emt 0:03:58]} 24. Qxe3 {[%emt 0:00:57]} Rxe3 {[%emt 0:00:04]} 25. Rcd1 {[%emt 0:02:28]} Rfe8 {[%emt 0:00:20]} 26. Rd2 {[%emt 0:01:38]} Kf7 {[%emt 0:05:09]} 27. Rfd1 {[%emt 0:02:59]} Kf6 {[%emt 0:00:30]} 28. Kf1 {[%emt 0:04:17]} Kf5 {[%emt 0:01:36]} 29. Rd3 {[%emt 0:01:23]} Re2 {[%emt 0:04:03]} 30. R3d2 {[%emt 0:00:27]} Rxd2 {[%emt 0:00:25]} 31. Rxd2 {[%emt 0:00:06]} Re3 {[%emt 0:00:04]} 32. Kf2 {[%emt 0:00:39]} Ke4 {[%emt 0:00:05]} 33. h4 {[%emt 0:08:49]} h5 {[%emt 0:02:49]} 34. b3 {[%emt 0:01:33]} g6 {[%emt 0:03:31]} 35. Kg2 {[%emt 0:04:21]} a6 {[%emt 0:02:12]} 36. b4 {[%emt 0:00:48]} Kf5 {[%emt 0:01:05]} 37. Kh3 {[%emt 0:00:54]} Re1 {[%emt 0:01:16]} 38. Rd3 {[%emt 0:01:11]} Re2 {[%emt 0:01:11]} 39. a4 {[%emt 0:00:59]} Rb2 {[%emt 0:00:39]} 40. b5 {[%emt 0:01:32]} axb5 {[%emt 0:15:36]} 41. axb5 {[%emt 0:15:07]} Rxb5 {[%emt 0:00:11]} 0-1

[Event "GER-ch Youth U12M 2018"]
[Site "Willingen"]
[Date "2018.05.20"]
[Round "1"]
[White "Phan Trong, Dai"]
[Black "Laux, Dominik"]
[Result "0-1"]
[ECO "A21"]
[WhiteElo "1579"]
[BlackElo "1889"]
[Annotator "NA"]
[PlyCount "52"]
[EventDate "2018.05.19"]
[EventType "swiss"]
[EventCountry "GER"]
[SourceTitle "playchess.com"]
[Source "ChessBase"]
[SourceQuality "1"]
[TimeControl "40/4500+30:900+30"]

1. c4 {[%emt 0:00:00]} e5 {[%emt 0:00:17]} 2. Nc3 {[%emt 0:00:00]} Bb4 {[%emt 0:00:14]} 3. e4 {[%emt 0:02:56]} Bxc3 {[%emt 0:00:10]} 4. bxc3 {[%emt 0:00:09]} d6 {[%emt 0:00:46]} 5. g3 {[%emt 0:00:31]} c5 {[%emt 0:01:09]} 6. Bg2 {[%emt 0:00:09]} Nc6 {[%emt 0:00:19]} 7. Ne2 {[%emt 0:00:09]} Nge7 {[%emt 0:01:33]} 8. O-O {[%emt 0:01:39]} O-O {[%emt 0:00:49]} 9. d3 {[%emt 0:00:23]} f5 {[%emt 0:04:25]} 10. f4 {[%emt 0:00:55]} h6 {[%emt 0:02:48]} 11. Be3 {[%emt 0:04:05]} b6 {[%emt 0:04:59]} 12. Rb1 {[%emt 0:01:30]} Qc7 {[%emt 0:02:18]} (12... fxe4 $15 13. Bxe4 Bf5) 13. Qd2 {[%emt 0:02:00]} Bb7 {[%emt 0:04:17]} 14. Rbd1 {[%emt 0:00:51]} Na5 {[%emt 0:01:58]} 15. exf5 $15 {[%emt 0:04:15]} (15. g4 $5) 15... Bxg2 {[%emt 0:02:29]} 16. Kxg2 {[%emt 0:00:20]} Nxf5 {[%emt 0:01:23]} 17. Bf2 {[%emt 0:03:35]} Qc6+ {[%emt 0:05:10]} 18. Kg1 {[%emt 0:01:48]} e4 {[%emt 0:02:10]} 19. g4 {[%emt 0:04:26]} e3 {[%emt 0:03:58]} 20. Bxe3 {[%emt 0:01:52]} Nh4 {[%emt 0:00:25]} 21. Ng3 {[%emt 0:09:00]} Nf3+ {[%emt 0:00:47]} 22. Rxf3 {[%emt 0:00:09]} Qxf3 {[%emt 0:00:07]} 23. g5 {[%emt 0:04:56]} Rae8 {[%emt 0:01:07]} 24. Ne4 {[%emt 0:00:56]} Nxc4 {[%emt 0:00:44]} 25. dxc4 {[%emt 0:01:31]} Qxe4 {[%emt 0:00:18]} 26. Re1 {[%emt 0:00:11]} Rxf4 {[%emt 0:01:35]} 0-1

[Event "GER-ch Youth U12M 2018"]
[Site "Willingen"]
[Date "2018.05.20"]
[Round "1"]
[White "Niemann, Leon"]
[Black "Wagner, Leopold Franziskus"]
[Result "0-1"]
[ECO "B13"]
[WhiteElo "1563"]
[BlackElo "2234"]
[Annotator "NA"]
[PlyCount "60"]
[EventDate "2018.05.19"]
[EventType "swiss"]
[EventCountry "GER"]
[SourceTitle "playchess.com"]
[Source "ChessBase"]
[SourceQuality "1"]
[TimeControl "40/4500+30:900+30"]

1. e4 {[%emt 0:00:00]} c6 {[%emt 0:00:12]} 2. d4 {[%emt 0:00:00]} d5 {[%emt 0:00:05]} 3. exd5 {[%emt 0:00:17]} cxd5 {[%emt 0:00:06]} 4. Bd3 {[%emt 0:00:19]} Nc6 {[%emt 0:00:13]} 5. c3 {[%emt 0:00:11]} Qc7 {[%emt 0:00:54]} 6. Ne2 {[%emt 0:01:17]} Bg4 {[%emt 0:02:11]} 7. f3 {[%emt 0:02:48]} Bd7 {[%emt 0:00:44] LiveBook: 111 Games} 8. Bf4 {[%emt 0:06:18]} Qc8 {[%emt 0:01:49] B13: Caro-Kann: Exchange Variation and Panov-Botvinnik Attack} (8... e5 9. dxe5 Nxe5 10. O-O Nf6 11. Nd4 Bd6 12. Na3 O-O 13. Kh1 Bxa3 14. bxa3 Nh5 15. Bxe5 Qxe5 16. Re1 {½-½ (35) Gusain,H (2461)-Warakomski,T (2518) Warsaw 2017}) 9. Ng3 {[%emt 0:03:56]} Nf6 {[%emt 0:00:35]} 10. O-O {[%emt 0:00:50]} g6 {[%emt 0:01:24]} 11. Qc2 {[%emt 0:01:33]} Bg7 {[%emt 0:00:25]} 12. Nd2 {[%emt 0:01:30]} O-O $146 {[%emt 0:00:52]} ({Predecessor:} 12... h5 13. h4 Bh6 14. Bxh6 Rxh6 15. Rae1 Qc7 16. f4 {0-1 (36) Salazar,C (2216)-Soppe,G (2414) Mendoza 2005}) 13. Nb3 {[%emt 0:04:28]} b6 {[%emt 0:01:20]} 14. Rfe1 {[%emt 0:01:33]} Qb7 {[%emt 0:01:55]} 15. Rad1 {[%emt 0:08:15]} Ne8 {[%emt 0:03:49]} 16. Qb1 {[%emt 0:02:58]} Nc7 {[%emt 0:01:07]} 17. Ne2 {[%emt 0:04:05]} Rfe8 {[%emt 0:01:11]} 18. Bc2 {[%emt 0:05:30]} e6 {[%emt 0:01:05]} 19. Nec1 {[%emt 0:04:32]} f6 {[%emt 0:01:44]} 20. Nd3 {[%emt 0:04:39]} e5 {[%emt 0:00:45]} 21. Bg3 {[%emt 0:03:44]} e4 {[%emt 0:01:21]} 22. fxe4 {[%emt 0:03:53]} dxe4 {[%emt 0:01:02] [#]} 23. Nf4 {[%emt 0:03:09]} (23. Ndc5 $1 $16 {[%mdl 512]} bxc5 24. Nxc5) 23... f5 {[%emt 0:01:18]} 24. h4 {[%emt 0:01:19]} Ne7 {[%emt 0:00:45]} 25. Bf2 {[%emt 0:01:02]} Ned5 {[%emt 0:00:39]} 26. Nxd5 {[%emt 0:00:11]} Nxd5 {[%emt 0:00:10]} 27. g3 {[%emt 0:00:29]} e3 {[%emt 0:00:12]} 28. c4 $19 {[%emt 0:03:48]} exf2+ {[%emt 0:00:06]} 29. Kxf2 {[%emt 0:00:39]} Nf6 {[%emt 0:00:26]} 30. Rxe8+ {[%emt 0:02:51]} Rxe8 {[%emt 0:00:06]} 0-1

[Event "GER-ch Youth U12M 2018"]
[Site "Willingen"]
[Date "2018.05.20"]
[Round "2"]
[White "Wagner, Leopold Franziskus"]
[Black "Hecht, Jonas Christian"]
[Result "1/2-1/2"]
[ECO "A07"]
[WhiteElo "2234"]
[BlackElo "1713"]
[Annotator "NA"]
[PlyCount "151"]
[EventDate "2018.05.19"]
[EventType "swiss"]
[EventCountry "GER"]
[SourceTitle "playchess.com"]
[Source "ChessBase"]
[SourceQuality "1"]
[TimeControl "40/4500+30:900+30"]

1. Nf3 {[%emt 0:00:00]} d5 {[%emt 0:00:07]} 2. g3 {[%emt 0:00:00]} c6 {[%emt 0:00:06]} 3. Bg2 {[%emt 0:00:00]} Nf6 {[%emt 0:00:08]} 4. O-O {[%emt 0:00:55]} Bg4 {[%emt 0:00:22]} 5. h3 {[%emt 0:01:03]} Bh5 {[%emt 0:00:37]} 6. c4 {[%emt 0:00:31] A07: Réti Opening: New York and Capablanca Systems} (6. d4 e6 7. c4 Nbd7 8. cxd5 exd5 9. Ne5 Ne4 10. Nd2 Nxd2 11. Bxd2 Nxe5 12. dxe5 Bc5 13. Kh2 O-O {½-½ (32) Svidler,P (2768)-Karjakin,S (2753) Wijk aan Zee 2018}) 6... e6 {[%emt 0:00:17]} 7. Qc2 {[%emt 0:01:19]} Nbd7 {[%emt 0:01:44]} 8. b3 {[%emt 0:00:46]} Bd6 $146 {[%emt 0:00:58]} ({Predecessor:} 8... Be7 9. Bb2 O-O 10. Nc3 Nc5 11. d3 a5 12. Rac1 {1-0 (59) Sygulski,A (2445)-Kuczynski,R (2415) Gdynia 1985}) 9. Bb2 {[%emt 0:01:17]} O-O {[%emt 0:00:11]} 10. d4 {[%emt 0:00:39]} Bg6 {[%emt 0:06:09]} 11. Qd1 {[%emt 0:02:26]} h6 {[%emt 0:00:26]} 12. Nbd2 {[%emt 0:00:15]} Bh7 {[%emt 0:04:56]} 13. Ne5 {[%emt 0:01:03]} Qb8 {[%emt 0:04:15]} 14. f4 {[%emt 0:00:26]} Rd8 {[%emt 0:02:49]} 15. e3 {[%emt 0:04:59]} Ne4 {[%emt 0:04:40]} 16. Nxe4 {[%emt 0:00:53]} Bxe4 {[%emt 0:00:13]} 17. Bxe4 {[%emt 0:03:57]} dxe4 {[%emt 0:00:09]} 18. Qh5 {[%emt 0:00:43]} Bxe5 {[%emt 0:01:38]} 19. fxe5 {[%emt 0:00:58]} Rf8 {[%emt 0:11:58]} 20. Qg4 {[%emt 0:01:20]} f5 {[%emt 0:01:19]} 21. exf6 $1 {[%emt 0:00:38]} Nxf6 {[%emt 0:01:30]} 22. Qxe6+ {[%emt 0:00:11]} Kh8 {[%emt 0:00:15]} 23. Kg2 {[%emt 0:00:11]} Qc7 {[%emt 0:01:25]} 24. Qe5 {[%emt 0:01:58]} Qxe5 {[%emt 0:04:05]} 25. dxe5 {[%emt 0:01:43]} Nd7 {[%emt 0:04:37]} 26. Rad1 {[%emt 0:03:02]} Rxf1 {[%emt 0:01:14]} 27. Rxf1 {[%emt 0:01:32]} Nc5 {[%emt 0:02:02]} 28. Rf7 {[%emt 0:01:00]} Kg8 {[%emt 0:04:30]} 29. e6 {[%emt 0:01:16]} Nxe6 {[%emt 0:00:13]} 30. Re7 {[%emt 0:03:12]} Rd8 {[%emt 0:04:04]} 31. Be5 {[%emt 0:03:05]} Rd2+ {[%emt 0:00:33]} 32. Kf1 {[%emt 0:00:48]} Nc5 {[%emt 0:02:03]} 33. Rxg7+ {[%emt 0:04:08]} Kf8 {[%emt 0:00:09]} 34. Rg4 {[%emt 0:01:47]} Ke7 {[%emt 0:04:12]} 35. Bd4 {[%emt 0:01:12]} Ne6 {[%emt 0:02:21]} 36. Rxe4 {[%emt 0:02:08]} Rxa2 {[%emt 0:00:07]} 37. g4 {[%emt 0:00:35]} Rh2 {[%emt 0:00:31]} 38. Bxa7 {[%emt 0:00:38]} Rxh3 {[%emt 0:00:09]} 39. Kg2 {[%emt 0:06:25]} Rh4 {[%emt 0:00:29]} 40. Kg3 {[%emt 0:00:49]} Rh1 {[%emt 0:15:26]} 41. c5 {[%emt 0:15:21]} Rc1 {[%emt 0:00:51]} 42. Rb4 {[%emt 0:01:14]} Nxc5 {[%emt 0:00:24]} 43. Bxc5+ {[%emt 0:00:46]} Rxc5 {[%emt 0:00:09]} 44. Rxb7+ {[%emt 0:00:04]} Kf6 {[%emt 0:00:36]} 45. Kf4 {[%emt 0:00:52]} h5 {[%emt 0:01:20]} 46. Rb4 {[%emt 0:04:16]} hxg4 {[%emt 0:00:39]} 47. Kxg4 {[%emt 0:00:22]} Ke5 {[%emt 0:01:01]} 48. Kf3 {[%emt 0:00:04]} Rc1 {[%emt 0:00:54]} 49. Re4+ {[%emt 0:01:22]} Kd5 {[%emt 0:00:53]} 50. Rd4+ {[%emt 0:03:06]} Ke5 {[%emt 0:02:28]} 51. Rc4 {[%emt 0:02:40]} Rf1+ {[%emt 0:00:44]} 52. Ke2 {[%emt 0:00:57]} Rb1 {[%emt 0:00:06]} 53. b4 {[%emt 0:01:28]} Kd5 {[%emt 0:00:11]} 54. Rd4+ {[%emt 0:00:13]} Ke5 {[%emt 0:00:09]} 55. Kd3 {[%emt 0:00:54]} Rb3+ {[%emt 0:02:51]} 56. Kd2 {[%emt 0:00:51]} Ra3 {[%emt 0:02:58]} 57. Rc4 {[%emt 0:01:29]} Rb3 {[%emt 0:04:33]} 58. Kc2 {[%emt 0:04:01]} Rxe3 {[%emt 0:00:14]} 59. Rxc6 {[%emt 0:00:03]} Kd5 {[%emt 0:00:24]} 60. Rc8 {[%emt 0:00:10]} Rh3 {[%emt 0:01:15]} 61. Kb2 {[%emt 0:02:04]} Kd6 {[%emt 0:00:21]} 62. Ka2 {[%emt 0:01:07]} Kd5 {[%emt 0:00:19]} 63. Rc2 {[%emt 0:02:15]} Kd6 {[%emt 0:00:32]} 64. Rc1 {[%emt 0:03:20]} Rg3 {[%emt 0:00:17]} 65. b5 {[%emt 0:03:48]} Rg5 {[%emt 0:01:01]} 66. Rb1 {[%emt 0:00:06]} Kc7 {[%emt 0:00:08]} 67. Ka3 {[%emt 0:00:08]} Kb6 {[%emt 0:00:06]} 68. Ka4 {[%emt 0:00:04]} Rg4+ {[%emt 0:00:16]} 69. Rb4 {[%emt 0:00:07]} Rxb4+ {[%emt 0:00:16]} 70. Kxb4 {[%emt 0:00:03]} Kb7 {[%emt 0:00:16]} 71. Kc5 {[%emt 0:00:05]} Kc7 {[%emt 0:00:04]} 72. b6+ {[%emt 0:00:09]} Kb7 {[%emt 0:00:05]} 73. Kb5 $11 {[%emt 0:00:03]} Kb8 {[%emt 0:00:10]} 74. Ka6 {[%emt 0:00:06]} Ka8 {[%emt 0:00:07]} 75. b7+ {[%emt 0:00:05]} Kb8 {[%emt 0:00:05]} 76. Kb6 {[%emt 0:00:03]} 1/2-1/2

[Event "GER-ch Youth U12M 2018"]
[Site "Willingen"]
[Date "2018.05.20"]
[Round "2"]
[White "Hommer, Jeremy"]
[Black "Stepanov, Maximilian"]
[Result "1-0"]
[ECO "B06"]
[WhiteElo "1897"]
[BlackElo "1300"]
[Annotator "NA"]
[PlyCount "35"]
[EventDate "2018.05.19"]
[EventType "swiss"]
[EventCountry "GER"]
[SourceTitle "playchess.com"]
[Source "ChessBase"]
[SourceQuality "1"]
[TimeControl "40/4500+30:900+30"]

1. e4 {[%emt 0:00:00]} d6 {[%emt 0:00:10]} 2. d4 {[%emt 0:00:00]} g6 {[%emt 0:00:24]} 3. Nc3 {[%emt 0:00:00]} Bg7 {[%emt 0:00:24]} 4. Be3 {[%emt 0:00:00]} Nf6 {[%emt 0:00:30]} 5. f3 {[%emt 0:00:00]} Nbd7 {[%emt 0:00:11]} 6. Qd2 {[%emt 0:00:03]} e5 {[%emt 0:00:14]} 7. O-O-O {[%emt 0:01:13]} O-O {[%emt 0:00:38]} 8. g4 {[%emt 0:02:52]} Qe7 {[%emt 0:01:11]} 9. h4 {[%emt 0:06:38]} exd4 {[%emt 0:00:33]} 10. Bxd4 {[%emt 0:01:30]} Ne5 {[%emt 0:00:23]} 11. h5 {[%emt 0:07:23]} Nc6 {[%emt 0:02:14]} 12. Be3 {[%emt 0:04:18]} Nd7 {[%emt 0:02:36]} 13. hxg6 {[%emt 0:10:05]} fxg6 {[%emt 0:00:37]} 14. Bc4+ {[%emt 0:01:45]} Kh8 {[%emt 0:00:12]} 15. Rxh7+ {[%emt 0:01:07]} Kxh7 {[%emt 0:00:37]} 16. Qh2+ {[%emt 0:00:04]} Qh4 {[%emt 0:01:22]} 17. Qxh4+ {[%emt 0:00:03]} Bh6 {[%emt 0:00:07]} 18. Qxh6# 1-0

[Event "GER-ch Youth U12M 2018"]
[Site "Willingen"]
[Date "2018.05.20"]
[Round "2"]
[White "Laux, Dominik"]
[Black "Gluma, Christian"]
[Result "1-0"]
[ECO "A40"]
[WhiteElo "1889"]
[BlackElo "1601"]
[Annotator "NA"]
[PlyCount "84"]
[EventDate "2018.05.19"]
[EventType "swiss"]
[EventCountry "GER"]
[SourceTitle "playchess.com"]
[Source "ChessBase"]
[SourceQuality "1"]
[TimeControl "40/4500+30:900+30"]

1. d4 {[%emt 0:00:00]} e6 {[%emt 0:00:07]} 2. Bf4 {[%emt 0:00:01]} d5 {[%emt 0:00:17]} 3. e3 {[%emt 0:00:20]} Nf6 {[%emt 0:00:51]} 4. Nd2 {[%emt 0:00:38]} Be7 {[%emt 0:00:44]} 5. Bd3 {[%emt 0:00:42]} Nbd7 {[%emt 0:01:18]} 6. Ngf3 c5 {[%emt 0:02:27]} 7. c3 {[%emt 0:01:44]} Qb6 {[%emt 0:01:34]} 8. Qc2 {[%emt 0:01:06]} a6 {[%emt 0:05:31]} 9. h3 {[%emt 0:08:31]} Nf8 {[%emt 0:09:52]} 10. Ne5 {[%emt 0:03:33]} N6d7 {[%emt 0:09:04]} 11. Ndf3 {[%emt 0:05:42]} Ng6 {[%emt 0:00:17]} 12. Nxg6 {[%emt 0:03:50]} hxg6 {[%emt 0:07:47]} 13. a4 {[%emt 0:05:46]} Nb8 {[%emt 0:04:01]} 14. Ne5 {[%emt 0:05:49]} Nc6 {[%emt 0:04:23]} 15. a5 {[%emt 0:06:05]} Qd8 16. Qa4 {[%emt 0:01:44]} Bd7 {[%emt 0:04:10]} 17. Nxd7 {[%emt 0:04:21]} Qxd7 {[%emt 0:03:22]} 18. O-O {[%emt 0:01:52]} c4 {[%emt 0:00:36]} 19. Bc2 {[%emt 0:00:30]} Bd8 {[%emt 0:00:30]} 20. e4 {[%emt 0:01:44]} Nxa5 {[%emt 0:08:08]} 21. exd5 {[%emt 0:02:15]} Qxa4 {[%emt 0:00:06]} 22. Bxa4+ {[%emt 0:00:37]} b5 {[%emt 0:10:39]} 23. Bd1 {[%emt 0:14:05]} O-O {[%emt 0:00:15]} 24. dxe6 {[%emt 0:01:15]} fxe6 {[%emt 0:00:55]} 25. Bd6 {[%emt 0:02:17]} Re8 26. Bf3 {[%emt 0:00:57]} Rc8 {[%emt 0:02:13]} 27. Rfe1 Bb6 {[%emt 0:00:51]} 28. Bg4 {[%emt 0:03:28]} Kf7 29. d5 {[%emt 0:01:29]} Rcd8 {[%emt 0:02:30]} 30. Bxe6+ {[%emt 0:00:50]} Kf6 {[%emt 0:00:15]} 31. Bb4 {[%emt 0:02:47]} Nb3 {[%emt 0:02:08]} 32. Rxa6 {[%emt 0:03:55]} Rb8 {[%emt 0:00:17]} 33. Bd6 {[%emt 0:00:11]} Rb7 34. Bc7 {[%emt 0:00:05]} Rxc7 {[%emt 0:01:21]} 35. Rxb6 {[%emt 0:01:24]} Kg5 {[%emt 0:01:13]} 36. d6 {[%emt 0:00:25]} Ra7 {[%emt 0:00:10]} 37. Rxb5+ {[%emt 0:00:22]} Kf6 {[%emt 0:00:30]} 38. Rbe5 Nc5 {[%emt 0:00:41]} 39. Rxc5 {[%emt 0:01:07]} Rxe6 {[%emt 0:00:11]} 40. Rxe6+ {[%emt 0:00:30]} Kxe6 {[%emt 0:15:07]} 41. Rxc4 {[%emt 0:15:11]} Kxd6 {[%emt 0:00:08]} 42. Rg4 {[%emt 0:00:08]} Ra1+ {[%emt 0:00:10]} 1-0